bitfinex-derivatives/quotes_SOLF0:USTF0_20240816
["timestamp","ask_amount","ask_price","bid_price","bid_amount"]
[1723815693454,50.77,141.33,141.22,1.3163]
[1723815693652,50.77,141.36,141.22,1.3163]
[1723815693852,50.77,141.36,141.24,50.77]
[1723815694050,3.5367,141.34,141.24,54.2196192]
[1723815694355,50.77,141.38,141.24,54.2196192]
[1723815694662,3.5368,141.34,141.3,3.5375]
[1723815694957,0.05069567,141.3,141.28,0.05206435]
[1723815695153,3.5364,141.35,141.31,3.5374]
[1723815695457,0.05251316,141.3,141.27,50.77]
[1723815695755,3.5361,141.37,141.28,1.2448]
[1723815695959,8.28,141.4,141.28,1.2448]
[1723815696155,50.77,141.38,141.28,1.2448]
[1723815696549,50.77,141.41,141.28,1.2448]
[1723815696752,50.77,141.41,141.34,3.5365]
[1723815696956,0.0502132,141.36,141.34,3.5365]
[1723815697264,3.5359,141.37,141.36,0.05095984]
[1723815699259,50.82292417,141.38,141.28,3.5381]
[1723815699559,3.45681928,141.4,141.27,8.28]
[1723815699756,50.77,141.42,141.27,59.05]
[1723815700150,50.77,141.39,141.27,8.28]
[1723815700455,50.82328904,141.36,141.33,0.04976975]
[1723815700659,50.77,141.36,141.33,0.04976975]
[1723815700967,50.82100026,141.36,141.33,0.05018834]
[1723815701263,50.82100026,141.36,141.25,1.2708]
[1723815701264,50.77,141.34,141.25,1.2708]
[1723815701862,50.77,141.31,141.22,9.5963]
[1723815702359,50.77,141.31,141.22,1.3163]
[1723815702552,0.04549911,141.28,141.25,0.04729768]
[1723815702749,0.04549911,141.28,141.26,3.5385]
[1723815703153,0.04549911,141.28,141.25,0.04729768]
[1723815703549,3.58379911,141.28,141.25,0.04729768]
[1723815703761,0.04549911,141.28,141.25,0.04729768]
[1723815704661,3.5387,141.26,141.25,0.04729768]
[1723815705563,54.3087,141.26,141.25,0.00819768]
[1723815706158,57.92631484,141.26,141.25,0.00819768]
[1723815706661,50.77,141.26,141.14,2.6401]
[1723815706964,50.77,141.22,141.14,2.6401]
[1723815707964,3.5409,141.17,141.14,6.1817]
[1723815708860,3.5409,141.17,141.13,3.5418]
[1723815709058,50.81732986,141.19,141.09,2.5068]
[1723815709361,50.77,141.17,141.09,2.5068]
[1723815709568,50.77,141.17,141.02,58.69]
[1723815709861,50.77,141.17,141.06,3.5435]
[1723815710064,50.77,141.14,141.03,2.5336]
[1723815710400,0.04473552,141.11,141.03,2.5336]
[1723815710663,3.5433,141.08,141.03,2.5336]
[1723815711054,50.77,141.12,141.03,2.5336]
[1723815711461,50.77,141.12,141.01,1.32]
[1723815711462,0.0447801,141.07,140.97,14.946845]
[1723815711652,0.0447801,141.07,140.97,11.401045]
[1723815711858,50.77,141.09,140.97,11.401045]
[1723815712056,3.5446,141.03,140.99,3.5453]
[1723815712259,0.04543607,141.03,140.97,7.94]
[1723815712454,0.04543607,141.03,140.95,4.84439195]
[1723815712653,0.04543607,141.03,140.97,50.77]
[1723815712854,0.04543607,141.03,140.98,3.55633887]
[1723815713055,0.04543607,141.03,140.97,50.77]
[1723815714055,0.04543607,141.03,140.95,4.79160836]
[1723815714670,3.59003607,141.03,140.99,3.5454]
[1723815715068,3.59003607,141.03,140.95,4.79160836]
[1723815715069,0.04543607,141.03,140.96,50.77]
[1723815716068,58.71,141.12,140.99,50.77]
[1723815716267,3.5435,141.07,141.03,3.5443]
[1723815716473,58.71,141.12,141.0,1.3414]
[1723815716865,3.5437,141.06,141.02,3.5445]
[1723815717273,0.05275357,141.05,141.03,0.04635904]
[1723815717572,58.71,141.14,141.01,50.77]
[1723815717961,62.2189066,141.14,141.01,50.77]
[1723815718378,58.71,141.14,141.01,50.77]
[1723815718673,58.71,141.14,141.06,0.04715241]
[1723815718674,0.05295863,141.09,141.06,0.04715241]
[1723815719064,3.5434,141.07,141.06,0.04715241]
[1723815719271,0.05295863,141.09,141.06,0.04715241]
[1723815720071,0.05295863,141.09,141.08,3.5432]
[1723815720276,0.05295863,141.09,141.06,0.04715241]
[1723815720869,58.71,141.17,141.06,0.04715241]
[1723815721283,58.71,141.17,141.05,1.2802]
[1723815721476,3.5417,141.14,141.1,3.5425]
[1723815721673,50.77,141.2,141.09,3.48651838]
[1723815721972,3.52441532,141.21,141.13,3.5418]
[1723815722177,0.05192927,141.16,141.13,0.04635453]
[1723815722675,50.77,141.21,141.1,9.227]
[1723815722874,0.05384391,141.16,141.13,0.05053028]
[1723815723075,0.05384391,141.16,141.15,3.5414]
[1723815723974,230.0,141.28,141.14,52.046]
[1723815724178,3.5387,141.26,141.17,50.77]
[1723815724379,11.49205148,141.31,141.25,3.5388]
[1723815724380,7.94,141.31,141.25,3.5388]
[1723815724675,7.94,141.31,141.18,1.287]
[1723815724676,3.5383,141.28,141.21,3.57931232]
[1723815724869,3.5383,141.28,141.23,3.5392]
[1723815725088,11.54161664,141.31,141.18,12.79427507]
[1723815725271,7.94,141.31,141.18,12.79427507]
[1723815725468,7.94,141.31,141.23,0.05145007]
[1723815725469,0.04799141,141.26,141.23,0.05145007]
[1723815726780,3.5392,141.24,141.23,0.05145007]
[1723815726967,0.04799141,141.26,141.23,0.05145007]
[1723815727367,3.58669141,141.26,141.23,0.05145007]
[1723815727580,0.04799141,141.26,141.23,0.05145007]
[1723815728178,3.58669141,141.26,141.23,0.05145007]
[1723815728383,0.04799141,141.26,141.23,0.05145007]
[1723815728573,50.9257,141.36,141.24,3.61050686]
[1723815728773,50.9257,141.36,141.27,3.5383]
[1723815728974,54.51213918,141.36,141.27,3.5383]
[1723815729468,54.51213918,141.36,141.28,3.5381]
[1723815729981,0.05150916,141.33,141.3,0.05278367]
[1723815730973,50.82150916,141.33,141.3,0.05278367]
[1723815731483,3.5374,141.31,141.3,0.05278367]
[1723815732670,0.05150916,141.33,141.3,0.05278367]
[1723815733689,3.5374,141.31,141.3,0.05278367]
[1723815735875,50.77,141.31,141.22,1.2925]
[1723815736077,50.77,141.28,141.18,9.2267]
[1723815736274,50.77,141.26,141.18,9.2267]
[1723815736477,3.5396,141.23,141.19,4.8796]
[1723815736680,50.77,141.26,141.19,1.3393]
[1723815736882,50.77,141.26,141.18,7.94]
[1723815737084,0.04522952,141.24,141.18,7.94]
[1723815737475,0.04522952,141.24,141.21,0.04565083]
[1723815737676,3.58452952,141.24,141.21,0.04565083]
[1723815737900,0.04522952,141.24,141.21,0.04565083]
[1723815738280,3.5397,141.22,141.21,0.04565083]
[1723815738479,0.04522952,141.24,141.21,0.04565083]
[1723815738888,3.5397,141.22,141.21,0.04565083]
[1723815739086,0.04522952,141.24,141.21,0.04565083]
[1723815739478,0.04522952,141.24,141.21,3.58535083]
[1723815740082,0.04522952,141.24,141.21,0.04565083]
[1723815740587,3.5397,141.22,141.21,0.04565083]
[1723815745889,7.62522952,141.24,141.21,0.04565083]
[1723815746287,0.04522952,141.24,141.21,0.04565083]
[1723815746587,7.58,141.31,141.21,0.04565083]
[1723815746789,7.58,141.31,141.21,1.34385083]
[1723815746987,3.5383,141.28,141.24,3.5392]
[1723815747194,7.58,141.31,141.24,3.5392]
[1723815747490,7.58,141.31,141.22,1.3471]
[1723815747994,0.05424418,141.28,141.25,0.05031213]
[1723815748184,0.05424418,141.28,141.26,3.5386]
[1723815748690,0.05424418,141.28,141.25,0.05031213]
[1723815748894,3.59244418,141.28,141.25,3.58911213]
[1723815749290,0.05424418,141.28,141.25,0.05031213]
[1723815750190,3.5387,141.26,141.25,0.05031213]
[1723815752186,50.77,141.27,141.16,2.5597]
[1723815752692,3.5403,141.2,141.16,2.5597]
[1723815752988,3.55337384,141.25,141.16,1.2763]
[1723815753295,50.77,141.27,141.16,1.2763]
[1723815753296,3.5404,141.19,141.16,1.2763]
[1723815753590,0.04900273,141.23,141.16,1.2763]
[1723815753591,3.51112886,141.23,141.16,1.2763]
[1723815753783,3.46212613,141.23,141.16,1.2763]
[1723815754188,50.77,141.27,141.16,1.2763]
[1723815754392,3.5398,141.22,141.16,1.2763]
[1723815754588,3.50708881,141.25,141.17,0.04507289]
[1723815755094,7.24,141.26,141.17,0.04507289]
[1723815755095,0.0545113,141.22,141.17,0.04507289]
[1723815755794,50.77,141.27,141.19,3.48867889]
[1723815755795,7.24,141.27,141.19,3.48867889]
[1723815755993,10.86269136,141.33,141.21,42.47]
[1723815756294,7.24,141.33,141.21,42.47]
[1723815756501,7.24,141.33,141.26,3.5385]
[1723815756699,7.24,141.33,141.21,42.47]
[1723815757192,42.47,141.31,141.26,0.05430626]
[1723815757393,0.04669156,141.28,141.26,0.05430626]
[1723815757693,0.04556274,141.28,141.26,0.05430626]
[1723815758200,0.04556274,141.28,141.27,3.5384]
[1723815758497,3.5372,141.32,141.28,3.538]
[1723815758790,7.24,141.37,141.28,3.538]
[1723815759000,3.537,141.33,141.29,3.5379]
[1723815759187,3.47729431,141.36,141.29,3.5379]
[1723815759591,3.58304997,141.32,141.3,0.04869831]
[1723815759796,0.04584997,141.32,141.3,0.04869831]
[1723815760195,3.5374,141.31,141.3,0.04869831]
[1723815762195,0.04584997,141.32,141.3,0.04869831]
[1723815764004,3.58314997,141.32,141.3,0.04869831]
[1723815764200,0.04584997,141.32,141.3,0.04869831]
[1723815764420,3.5374,141.31,141.3,0.04869831]
[1723815764801,0.04584997,141.32,141.3,0.04869831]
[1723815764997,3.58304997,141.32,141.3,0.04869831]
[1723815765197,0.04584997,141.32,141.3,3.58629831]
[1723815765700,0.04584997,141.32,141.3,0.04869831]
[1723815766096,3.58314997,141.32,141.3,0.04869831]
[1723815766899,3.5374,141.31,141.3,0.04869831]
[1723815768501,3.58314997,141.32,141.3,0.04869831]
[1723815768698,0.04584997,141.32,141.3,0.04869831]
[1723815769999,0.04584997,141.32,141.3,3.58619831]
[1723815770404,0.04584997,141.32,141.3,0.04869831]
[1723815771210,0.04584997,141.32,141.3,3.58619831]
[1723815771411,3.58304997,141.32,141.3,0.04869831]
[1723815771600,0.04584997,141.32,141.3,0.04869831]
[1723815772003,3.5374,141.31,141.3,0.04869831]
[1723815772804,3.5389,141.25,141.22,2.6598]
[1723815773108,50.94,141.31,141.22,2.6598]
[1723815773307,3.5388,141.26,141.23,3.5394]
[1723815773613,7.24,141.31,141.22,2.6598]
[1723815773807,3.5376,141.31,141.22,2.6598]
[1723815774103,0.04819043,141.28,141.25,0.04923112]
[1723815774313,7.24,141.36,141.29,3.5378]
[1723815774813,3.5371,141.33,141.27,3.48741109]
[1723815775009,3.5371,141.33,141.26,50.94]
[1723815775514,0.0534275,141.31,141.28,0.05384718]
[1723815776108,3.5367,141.34,141.28,0.05384718]
[1723815776309,3.5367,141.34,141.3,3.5374]
[1723815776910,3.5367,141.34,141.31,3.5373]
[1723815777401,3.5823219,141.34,141.31,3.5373]
[1723815777604,3.5358,141.38,141.31,0.04593557]
[1723815778011,3.5358,141.38,141.34,3.5364]
[1723815778907,0.05358441,141.37,141.35,0.05254201]
[1723815779625,0.05358441,141.37,141.35,3.58884201]
[1723815780002,0.05358441,141.37,141.35,0.05254201]
[1723815780511,7.24,141.44,141.35,0.05254201]
[1723815780710,7.24,141.44,141.36,3.536]
[1723815781316,42.45,141.43,141.32,1.3625]
[1723815781515,42.45,141.41,141.32,1.3625]
[1723815781711,3.5363,141.36,141.32,1.3625]
[1723815781909,0.04653754,141.39,141.33,3.5368]
[1723815782109,0.04693683,141.37,141.35,0.04887703]
[1723815782516,3.5363,141.36,141.35,0.04887703]
[1723815784112,0.04693683,141.37,141.35,0.04887703]
[1723815785711,3.5361,141.36,141.35,0.04887703]
[1723815786317,3.58293683,141.37,141.35,0.04887703]
[1723815786825,0.04693683,141.37,141.35,0.04887703]
[1723815787025,3.5361,141.36,141.35,0.04887703]
[1723815788728,3.5361,141.36,141.29,1.2765]
[1723815788940,3.5361,141.36,141.24,2.6514]
[1723815788941,42.45,141.33,141.24,2.6514]
[1723815789243,7.22,141.35,141.24,2.6514]
[1723815789244,42.45,141.31,141.24,2.6514]
[1723815789522,42.45,141.29,141.24,1.3257]
[1723815789721,49.67,141.29,141.22,1.2602]
[1723815789926,0.04991926,141.28,141.25,0.05202386]
[1723815790321,42.45,141.26,141.18,2.6514]
[1723815790520,3.46977587,141.25,141.18,6.192]
[1723815790817,42.45,141.26,141.18,2.6514]
[1723815791023,42.45,141.28,141.2,3.54]
[1723815791227,42.45,141.28,141.18,2.6514]
[1723815791228,3.5398,141.22,141.18,2.6514]
[1723815791523,3.47119037,141.23,141.18,2.6514]
[1723815791720,42.45,141.26,141.18,2.6514]
[1723815791922,42.45,141.26,141.18,1.3257]
[1723815792419,0.05193063,141.21,141.19,0.0488241]
[1723815792831,3.5402,141.2,141.19,0.0488241]
[1723815794323,42.4975692,141.21,141.13,2.5303]
[1723815794517,42.45,141.21,141.13,2.5303]
[1723815794825,3.5411,141.17,141.13,6.072]
[1723815795426,3.58626668,141.16,141.14,0.04664997]
[1723815795628,42.45,141.21,141.14,0.04664997]
[1723815795824,0.05309632,141.16,141.14,0.04664997]
[1723815796125,7.09587315,141.15,141.14,0.04664997]
[1723815796329,3.5414,141.15,141.14,0.04664997]
[1723815796823,7.03036433,141.15,141.14,0.04664997]
[1723815797130,0.05211511,141.16,141.14,0.04664997]
[1723815797327,3.46070998,141.26,141.14,1.30354997]
[1723815797523,7.22,141.27,141.14,1.30354997]
[1723815797826,42.45,141.22,141.14,1.2569]
[1723815798031,3.5411,141.17,141.14,1.2569]
[1723815798221,42.45,141.22,141.14,1.2569]
[1723815798422,0.04585534,141.17,141.14,1.30456826]
[1723815798624,0.04585534,141.17,141.16,3.5412]
[1723815798924,42.45,141.25,141.16,3.5412]
[1723815799128,42.45,141.25,141.14,1.2569]
[1723815799324,3.5404,141.19,141.16,3.541]
[1723815799536,3.5404,141.19,141.15,0.05147269]
[1723815799537,3.55933831,141.18,141.15,0.05147269]
[1723815800030,3.5414,141.16,141.12,3.5421]
[1723815800325,3.56221482,141.18,141.15,0.04770444]
[1723815800529,3.5414,141.16,141.15,0.04770444]
[1723815800731,3.55017763,141.19,141.09,43.7171]
[1723815800932,3.5418,141.14,141.11,3.5424]
[1723815801129,0.04941423,141.17,141.14,0.05306538]
[1723815801333,42.45,141.16,141.14,0.05306538]
[1723815801551,3.5424,141.12,141.09,1.2671]
[1723815801731,42.50216562,141.16,141.14,0.04463306]
[1723815801928,0.05216562,141.16,141.14,0.04463306]
[1723815802133,3.5417,141.14,141.11,3.5424]
[1723815802537,3.5417,141.14,141.11,3.58916111]
[1723815802837,3.5417,141.14,141.11,0.04676111]
[1723815803038,0.05161287,141.16,141.11,0.04676111]
[1723815805355,0.05161287,141.16,141.13,42.45]
[1723815805531,0.05161287,141.16,141.14,3.5254368]
[1723815805733,0.05161287,141.16,141.15,3.5414]
[1723815805932,7.22,141.23,141.14,3.5254368]
[1723815806540,10.72171199,141.23,141.13,42.45]
[1723815806735,10.72171199,141.23,141.16,3.5412]
[1723815807239,3.5406,141.19,141.15,3.5413]
[1723815807539,7.22,141.23,141.14,3.49179714]
[1723815807738,3.58732955,141.21,141.18,3.58988339]
[1723815807934,0.04732955,141.21,141.18,0.04938339]
[1723815808248,0.04732955,141.21,141.09,1.2671]
[1723815808249,42.45,141.2,141.09,1.2671]
[1723815808733,3.5416,141.15,141.09,1.2671]
[1723815808933,45.91357009,141.2,141.09,1.2671]
[1723815809134,3.46357009,141.2,141.09,43.7171]
[1723815809445,3.5405,141.19,141.12,42.45]
[1723815809641,45.94685662,141.24,141.13,3.47773457]
[1723815809937,0.05246076,141.16,141.15,3.5414]
[1723815810132,45.9610211,141.24,141.12,49.67]
[1723815810537,0.04858325,141.17,141.14,0.05160055]
[1723815810734,42.49858325,141.17,141.14,0.05160055]
[1723815810937,3.5418,141.14,141.09,1.2671]
[1723815811335,42.49517929,141.17,141.07,7.22]
[1723815811541,42.45,141.14,141.1,0.05094625]
[1723815811736,0.04762657,141.13,141.1,0.05094625]
[1723815812042,42.45,141.12,141.1,0.04470707]
[1723815812244,49.67,141.12,141.1,0.04470707]
[1723815812439,3.5436,141.07,141.03,4.9183]
[1723815812742,49.67,141.12,141.03,1.3741]
[1723815812939,3.5433,141.08,141.05,3.5438]
[1723815813779,0.05178983,141.08,141.05,0.0521175]
[1723815814139,3.59508983,141.08,141.05,3.5960175]
[1723815814843,0.05178983,141.08,141.05,3.5960175]
[1723815815042,0.05178983,141.08,141.05,0.0521175]
[1723815815240,3.5437,141.06,141.05,0.0521175]
[1723815816444,3.5452,141.0,140.93,3.5319379]
[1723815816647,3.60776401,141.05,140.97,3.5458]
[1723815816846,51.03,141.03,140.89,51.03]
[1723815817047,51.03,141.03,140.91,3.9979]
[1723815817244,3.61485057,141.04,140.96,3.5461]
[1723815817457,7.22,141.04,140.93,3.5422134]
[1723815817641,7.22,141.07,140.95,51.03]
[1723815817846,51.03,141.06,140.91,55.0279]
[1723815818046,0.05429936,141.01,140.99,0.04768934]
[1723815818641,3.5452,141.0,140.99,0.04768934]
[1723815819145,7.22,141.0,140.91,3.5473]
[1723815819344,51.03,140.99,140.9,7.22]
[1723815819548,51.03,140.99,140.87,3.9926]
[1723815819549,51.03,140.96,140.87,3.9926]
[1723815820549,0.046842,140.93,140.9,0.04693475]
[1723815820950,0.046842,140.93,140.92,3.5472]
[1723815821255,3.5467,140.94,140.87,3.9926]
[1723815821452,51.03,140.99,140.91,3.5474]
[1723815821652,51.03,141.01,140.87,55.0226]
[1723815821839,61.86048091,141.01,140.91,3.5474]
[1723815822042,0.04658738,140.94,140.91,3.59838059]
[1723815822450,0.04658738,140.94,140.92,3.5471]
[1723815822641,0.04658738,140.94,140.91,0.05098059]
[1723815822848,3.5472,140.92,140.91,0.05098059]
[1723815823245,51.03,140.96,140.87,7.541]
[1723815823551,3.5475,140.91,140.87,7.541]
[1723815823851,3.5475,140.91,140.9,0.05177602]
[1723815824041,0.04965398,140.93,140.9,0.05177602]
[1723815824746,3.5472,140.92,140.9,0.05177602]
[1723815824947,0.04965398,140.93,140.9,0.05177602]
[1723815825147,3.59675398,140.93,140.9,0.05177602]
[1723815825347,0.04965398,140.93,140.9,0.05177602]
[1723815827042,51.07965398,140.93,140.73,35.444]
[1723815827243,51.07965398,140.93,140.83,3.5494]
[1723815827244,51.03,140.91,140.83,3.5494]
[1723815827650,51.03,140.91,140.79,2.5935]
[1723815828350,51.03,140.91,140.82,3.5496]
[1723815828745,3.5491,140.85,140.79,2.5935]
[1723815828952,0.05356989,140.86,140.84,0.05209541]
[1723815829446,7.22,140.96,140.84,51.08209541]
[1723815829649,7.22,140.96,140.84,51.03]
[1723815829848,3.5468,140.94,140.84,51.03]
[1723815830449,7.22,140.96,140.84,51.03]
[1723815830450,51.03,140.99,140.84,51.03]
[1723815830651,58.25,140.99,140.84,51.03]
[1723815830947,3.5467,140.95,140.84,51.03]
[1723815831147,0.04957581,140.9,140.88,0.05388503]
[1723815831349,3.5467,140.95,140.88,0.05388503]
[1723815831552,3.5467,140.95,140.92,3.5471]
[1723815831747,3.5467,140.94,140.89,1.3281]
[1723815831948,3.46415592,140.98,140.91,3.5473]
[1723815832252,3.5463,140.96,140.89,1.3281]
[1723815832448,61.79395884,140.99,140.92,3.5471]
[1723815832654,61.79395884,140.99,140.9,1.298]
[1723815832655,0.05202443,140.96,140.93,0.05420684]
[1723815832950,3.59842443,140.96,140.93,3.60100684]
[1723815833254,0.05202443,140.96,140.93,0.05420684]
[1723815835054,51.03,140.94,140.93,0.05420684]
[1723815835249,54.5767,140.94,140.93,0.05420684]
[1723815835854,3.5467,140.94,140.93,0.05420684]
[1723815838353,46.1167,140.94,140.93,0.05420684]
[1723815839364,3.5465,140.95,140.93,0.05420684]
[1723815839556,0.05202443,140.96,140.93,0.05420684]
[1723815840651,42.62202443,140.96,140.93,0.05420684]
[1723815840848,42.57,140.94,140.93,0.05420684]
[1723815841052,42.57,140.94,140.85,2.6405]
[1723815841658,3.548,140.89,140.86,3.5487]
[1723815841955,42.57,140.94,140.85,2.6405]
[1723815842157,3.5473,140.92,140.89,3.5479]
[1723815842362,42.57,140.94,140.86,0.05408428]
[1723815842670,3.5477,140.9,140.87,3.5482]
[1723815843050,0.0538616,140.92,140.89,0.05422914]
[1723815843361,3.5476,140.91,140.89,0.05422914]
[1723815843555,0.0538616,140.92,140.89,0.05422914]
[1723815843763,0.0538616,140.92,140.9,3.5475]
[1723815843956,0.0538616,140.92,140.89,0.05422914]
[1723815846856,3.5475,140.91,140.89,0.05422914]
[1723815847055,0.0538616,140.92,140.89,0.05422914]
[1723815847559,3.6010616,140.92,140.89,3.60202914]
[1723815847761,0.0538616,140.92,140.89,0.05422914]
[1723815848259,46.1177,140.9,140.89,0.05422914]
[1723815848861,42.6238616,140.92,140.89,0.05422914]
[1723815849058,0.0538616,140.92,140.89,0.05422914]
[1723815849961,3.5477,140.9,140.89,0.05422914]
[1723815850157,42.57,140.9,140.84,1.2993]
[1723815850352,3.48560931,140.89,140.84,1.2993]
[1723815850554,42.57,140.88,140.8,2.6174]
[1723815850755,42.57,140.85,140.8,1.3334]
[1723815850962,42.57,140.85,140.74,42.57]
[1723815850963,42.57,140.83,140.73,7.22]
[1723815851155,42.57,140.83,140.74,1.2802]
[1723815851361,42.57,140.8,140.74,1.2802]
[1723815852253,3.5509,140.78,140.77,0.05355053]
[1723815857057,46.1209,140.78,140.77,0.05355053]
[1723815857762,53.3409,140.78,140.77,0.05355053]
[1723815858067,10.7709,140.78,140.77,0.05355053]
[1723815858454,3.59575963,140.79,140.77,0.05355053]
[1723815858662,0.04505963,140.79,140.77,0.05355053]
[1723815858966,3.5507,140.78,140.77,0.05355053]
[1723815859153,0.04505963,140.79,140.77,0.05355053]
[1723815859563,42.57,140.85,140.77,0.05355053]
[1723815859857,42.57,140.87,140.77,0.05355053]
[1723815860061,10.77970466,140.9,140.83,3.5494]
[1723815860380,49.79,140.9,140.8,3.55651579]
[1723815860553,49.79,140.9,140.78,43.9266]
[1723815860755,42.57,140.92,140.8,42.57]
[1723815860961,42.57,140.92,140.8,46.06050323]
[1723815861170,0.04634567,140.86,140.84,0.05202003]
[1723815861560,3.5478,140.9,140.84,0.05202003]
[1723815861864,42.57,140.92,140.86,3.5485]
[1723815862066,3.5476,140.91,140.81,7.22]
[1723815862267,3.5476,140.91,140.87,3.5482]
[1723815862465,3.5476,140.91,140.81,7.22]
[1723815862667,3.5472,140.92,140.83,42.57]
[1723815862869,42.57,140.98,140.85,42.57]
[1723815863170,0.0504172,140.9,140.88,0.05001113]
[1723815863370,3.5467,140.94,140.9,3.5476]
[1723815863775,3.5458,140.98,140.94,3.5466]
[1723815863962,42.57,141.0,140.89,1.3093]
[1723815864172,42.57,141.0,140.9,3.48046462]
[1723815864465,3.5458,140.98,140.94,3.5467]
[1723815864670,42.57,141.0,140.9,3.48046462]
[1723815864870,0.05183462,140.96,140.95,3.5464]
[1723815865175,42.57,141.04,140.94,0.04545625]
[1723815865572,3.5452,141.01,140.97,3.5458]
[1723815865765,42.57,141.02,140.93,7.22]
[1723815865960,42.57,141.02,140.93,10.76076619]
[1723815866773,0.04983955,140.99,140.96,0.04492618]
[1723815867174,0.04983955,140.99,140.97,3.5457]
[1723815867379,0.04983955,140.99,140.96,0.04492618]
[1723815867673,42.57,141.04,140.93,10.76076619]
[1723815867873,3.545,141.01,140.97,3.5458]
[1723815868079,0.04728368,140.99,140.96,0.05295126]
[1723815869163,42.57,141.04,140.96,0.05295126]
[1723815869368,42.57,141.06,140.96,0.05295126]
[1723815869567,7.22,141.08,140.99,3.5454]
[1723815869568,42.57,141.04,140.99,3.5454]
[1723815869961,3.5446,141.03,140.99,3.5454]
[1723815870166,42.57,141.04,140.98,3.5456]
[1723815870367,42.57,141.02,140.95,1.3237]
[1723815870574,46.1149,141.01,141.0,0.05328023]
[1723815870774,0.0528078,141.02,141.0,0.05328023]
[1723815871075,3.5449,141.01,140.98,3.5457]
[1723815871274,0.0528078,141.02,141.0,0.0534707]
[1723815871669,3.5975078,141.02,140.95,1.3237]
[1723815871991,3.5975078,141.02,141.0,0.0451204]
[1723815872171,0.0528078,141.02,140.95,1.3237]
[1723815872401,0.0528078,141.02,141.0,0.05196233]
[1723815872571,0.0528078,141.02,140.95,1.3237]
[1723815872974,0.0528078,141.02,141.0,0.05292154]
[1723815873173,3.5975078,141.02,141.0,0.05292154]
[1723815873474,3.5975078,141.02,141.0,0.05288997]
[1723815874074,0.0528078,141.02,141.0,0.05288997]
[1723815874275,42.57,141.1,141.0,0.05288997]
[1723815874481,42.57,141.1,141.04,3.544]
[1723815874681,42.57,141.08,141.0,1.38558997]
[1723815875181,42.57,141.08,141.01,3.61877219]
[1723815875786,42.57,141.08,141.0,1.3327]
[1723815875787,0.05402183,141.05,141.03,0.04658088]
[1723815876285,0.05402183,141.05,141.03,3.59088088]
[1723815876680,0.05402183,141.05,141.03,0.04658088]
[1723815877979,3.5442,141.04,141.03,0.04658088]
[1723815878378,42.57,141.04,140.95,8.5237]
[1723815878685,42.57,141.06,140.96,1.3064]
[1723815878984,3.5442,141.05,140.96,43.8764]
[1723815879180,42.57,141.08,141.01,3.5448]
[1723815879576,0.05094663,141.06,141.03,0.04987192]
[1723815881379,42.62094663,141.06,141.03,0.04987192]
[1723815881787,3.53233366,141.05,141.03,0.04987192]
[1723815882176,3.5442,141.04,141.03,0.04987192]
[1723815882376,3.5442,141.04,140.96,1.3064]
[1723815882377,42.57,141.04,140.96,1.3064]
[1723815882682,42.57,141.02,140.94,1.3714]
[1723815883281,3.5458,140.98,140.95,3.5463]
[1723815883483,3.5458,140.98,140.97,0.05255206]
[1723815885687,0.04785505,140.99,140.89,10.70958163]
[1723815885882,42.57,141.01,140.89,53.27958163]
[1723815886083,3.5456,140.99,140.89,53.27958163]
[1723815886286,42.57,141.01,140.89,53.27958163]
[1723815886679,3.5456,140.99,140.89,53.27958163]
[1723815886989,0.05010796,140.97,140.94,0.05370845]
[1723815887694,3.5464,140.95,140.94,0.05370845]
[1723815889989,0.05010796,140.97,140.94,3.60020845]
[1723815890185,0.05010796,140.97,140.94,0.05370845]
[1723815890387,3.59620796,140.97,140.94,0.05370845]
[1723815890686,0.05010796,140.97,140.95,3.5464]
[1723815891091,0.05010796,140.97,140.94,3.60020845]
[1723815891391,0.05010796,140.97,140.94,0.05370845]
[1723815891689,3.5463,140.96,140.94,0.05370845]
[1723815892084,0.05010796,140.97,140.94,0.05370845]